Workbook

Sheet 6. listopada 2016.
B1: 1. AKCIJA SKUPLJANJA STAROG PAPIRA U ŠK. GOD. 2016./2017.
B2: 6. LISTOPADA 2016.
B4: RAZRED | C4: BROJ UČENIKA | D4: MASA PAPIRA (kg) | E4: PROSJEK PO UČ.(kg)
B5: 1.a | C5: 19 | D5: 19 | E5: =D5/C5 -> 1
B6: 1.b | C6: 21 | D6: 24 | E6: =D6/C6 -> 1.142857143
B7: 2.a | C7: 21 | D7: 137 | E7: =D7/C7 -> 6.523809524
B8: 2.b | C8: 22 | D8: 132 | E8: 6
B9: 3.a | C9: 17 | D9: 29 | E9: 1.705882353
B10: 3.b | C10: 12 | D10: 30 | E10: 2.5
B11: 4.a | C11: 10 | D11: 20 | E11: 2
B12: 4.b | C12: 9 | D12: 142 | E12: 15.77777778
B13: 5.a | C13: 14 | D13: 18 | E13: 1.285714286
B14: 5.b | C14: 14 | D14: 5 | E14: 0.3571428571
B15: 6.a | C15: 12 | D15: 33 | E15: 2.75
B16: 6.b | C16: 15 | D16: 13 | E16: 0.8666666667
B17: 7.a | C17: 15 | D17: 35 | E17: 2.333333333
B18: 7.b | C18: 16 | D18: 28 | E18: 1.75
B19: 8.a | C19: 13 | D19: 0 | E19: 0
B20: 8.b | C20: 13 | D20: 7 | E20: 0.5384615385
B21: UKUPNO | C21: =SUM(C5:C20) -> 243 | D21: =SUM(D5:D20) -> 672 | E21: 2.765432099

Sheet 12. prosinca 2016.
B1: 2. AKCIJA SKUPLJANJA STAROG PAPIRA U ŠK. GOD. 2016./2017.
B2: 12. PROSINCA 2016.
B4: RAZRED | C4: BROJ UČENIKA | D4: MASA PAPIRA (kg) | E4: PROSJEK PO UČ.(kg)
B5: 1.a | C5: 19 | D5: 92 | E5: =D5/C5 -> 4.842105263
B6: 1.b | C6: 21 | D6: 13 | E6: =D6/C6 -> 0.619047619
B7: 2.a | C7: 21 | D7: 100 | E7: =D7/C7 -> 4.761904762
B8: 2.b | C8: 22 | D8: 55 | E8: 2.5
B9: 3.a | C9: 17 | D9: 1 | E9: 0.05882352941
B10: 3.b | C10: 12 | D10: 7 | E10: 0.5833333333
B11: 4.a | C11: 10 | D11: 0 | E11: 0
B12: 4.b | C12: 9 | D12: 114 | E12: 12.66666667
B13: 5.a | C13: 13 | D13: 12 | E13: 0.9230769231
B14: 5.b | C14: 14 | D14: 14 | E14: 1
B15: 6.a | C15: 12 | D15: 14 | E15: 1.166666667
B16: 6.b | C16: 15 | D16: 3 | E16: 0.2
B17: 7.a | C17: 15 | D17: 15 | E17: 1
B18: 7.b | C18: 16 | D18: 10 | E18: 0.625
B19: 8.a | C19: 13 | D19: 8 | E19: 0.6153846154
B20: 8.b | C20: 12 | D20: 2 | E20: 0.1666666667
B21: UKUPNO | C21: =SUM(C5:C20) -> 241 | D21: =SUM(D5:D20) -> 460 | E21: 1.908713693

Sheet 4. svibnja 2017.
B1: 4. AKCIJA SKUPLJANJA STAROG PAPIRA U ŠK. GOD. 2016./2017.
B2: 4. SVIBNJA 2017.
B4: RAZRED | C4: BROJ UČENIKA | D4: MASA PAPIRA (kg) | E4: PROSJEK PO UČ.(kg)
B5: 1.a | C5: 19 | D5: 95 | E5: =D5/C5 -> 5
B6: 1.b | C6: 21 | D6: 37 | E6: 1.761904762
B7: 2.a | C7: 21 | D7: 154 | E7: 7.333333333
B8: 2.b | C8: 22 | D8: 47 | E8: 2.136363636
B9: 3.a | C9: 17 | D9: 64 | E9: 3.764705882
B10: 3.b | C10: 12 | D10: 22 | E10: 1.833333333
B11: 4.a | C11: 10 | D11: 0 | E11: 0
B12: 4.b | C12: 9 | D12: 94 | E12: 10.44444444
B13: 5.a | C13: 13 | D13: 136 | E13: 10.46153846
B14: 5.b | C14: 14 | D14: 0 | E14: 0
B15: 6.a | C15: 12 | D15: 10 | E15: 0.8333333333
B16: 6.b | C16: 15 | D16: 11 | E16: 0.7333333333
B17: 7.a | C17: 15 | D17: 2 | E17: 0.1333333333
B18: 7.b | C18: 16 | D18: 7 | E18: 0.4375
B19: 8.a | C19: 13 | D19: 0 | E19: 0
B20: 8.b | C20: 12 | D20: 0 | E20: 0
B21: UKUPNO | C21: =SUM(C5:C20) -> 241 | D21: =SUM(D5:D20) -> 679 | E21: 2.817427386

Sheet UKUPNO 2016.-17.
B1: AKCIJE SKUPLJANJA STAROG PAPIRA U ŠK. GOD. 2016./2017.
B2: UKUPNO
B4: RAZRED | C4: BROJ UČENIKA | D4: MASA PAPIRA (kg) | E4: PROSJEK PO UČ.(kg)
B5: 1.a | C5: 19 | D5: 258 | E5: =D5/C5 -> 13.57894737
B6: 1.b | C6: 21 | D6: 132 | E6: 6.285714286
B7: 2.a | C7: 21 | D7: 485 | E7: 23.0952381
B8: 2.b | C8: 22 | D8: 301 | E8: 13.68181818
B9: 3.a | C9: 17 | D9: 107 | E9: 6.294117647
B10: 3.b | C10: 12 | D10: 92 | E10: 7.666666667
B11: 4.a | C11: 10 | D11: 20 | E11: 2
B12: 4.b | C12: 9 | D12: 404 | E12: 44.88888889
B13: 5.a | C13: 13 | D13: 174 | E13: 13.38461538
B14: 5.b | C14: 14 | D14: 19 | E14: 1.357142857
B15: 6.a | C15: 12 | D15: 83 | E15: 6.916666667
B16: 6.b | C16: 15 | D16: 27 | E16: 1.8
B17: 7.a | C17: 15 | D17: 52 | E17: 3.466666667
B18: 7.b | C18: 16 | D18: 52 | E18: 3.25
B19: 8.a | C19: 13 | D19: 10 | E19: 0.7692307692
B20: 8.b | C20: 12 | D20: 9 | E20: 0.75
B21: UKUPNO | C21: =SUM(C5:C20) -> 241 | D21: =SUM(D5:D20) -> 2225 | E21: 9.232365145

Sheet List3
